fUST/lending_fUST_20250926
["ID","MTS","AMOUNT","RATE_DAILY","PERIOD"]
[387736594,1758833342625,-2000.0,0.00045,120]
[387736595,1758833342649,-84181.59733774,0.00045,30]
[387736596,1758833342674,-35000.0,0.00045,30]
[387736597,1758833342697,-1000.0,0.00045,30]
[387736598,1758833342722,-1188.41474854,0.00045,120]
[387736599,1758833342746,-644.0,0.00045,120]
[387736600,1758833342770,-9260.0,0.00045,120]
[387736601,1758833342793,-55735.42124906,0.00045,30]
[387736602,1758833342817,-5029.94,0.00045,120]
[387736603,1758833342841,-3252.24473246,0.00045,120]
[387736604,1758833342865,-214.17407328,0.00045,120]
[387736605,1758833342888,-3559.31150712,0.00045,120]
[387736606,1758833342912,-5028.42,0.00045,120]
[387736607,1758833342935,-51126.60261007,0.00045,120]
[387736608,1758833342958,-5292.56425192,0.00045,120]
[387736609,1758833342982,-819.994,0.00045091,72]
[387736610,1758833343007,-200.0,0.00045156,120]
[387736611,1758833343031,-500.0,0.00045205,120]
[387736612,1758833343057,-3700.72,0.00045205,120]
[387736613,1758833343083,-3700.72,0.00045479,120]
[387736614,1758833343109,-2000.0,0.000455,120]
[387736615,1758833343135,-1493.26313749,0.00045625,46]
[387736616,1758833343161,-900.0,0.00045753,60]
[387736617,1758833343188,-3700.72,0.00045753,120]
[387736618,1758833343213,-267.52488044,0.000458,120]
[387736619,1758833343239,-2939.34,0.00045999,60]
[387736620,1758833343264,-12063.48913725,0.00045999,120]
[387736621,1758833343291,-300.0,0.00046,120]
[387736622,1758833343318,-2000.0,0.00046,120]
[387736623,1758833343352,-35000.0,0.00046,35]
[387736624,1758833343380,-500.0,0.00046027,30]
[387736625,1758833343409,-643.74,0.00046027,120]
[387736626,1758833343436,-3700.72,0.00046027,120]
[387736627,1758833343463,-3700.72,0.00046301,120]
[387736628,1758833343488,-95128.33908346,0.0004644,30]
[387736629,1758833351878,-266.45565138,0.00032,120]
[387736630,1758833351905,-1154.10435632,0.00032,120]
[387736631,1758833351933,-1041.39762777,0.00032,120]
[387736632,1758833351958,-266.45565138,0.000323,120]
[387736633,1758833351984,-1154.10435632,0.000323,120]
[387736634,1758833352008,-266.45565138,0.000326,120]
[387736635,1758833352035,-1154.10435632,0.000326,120]
[387736636,1758833352065,-266.45565138,0.00033,120]
[387736637,1758833352090,-1154.10435632,0.00033,120]
[387736638,1758833352117,-266.45565138,0.000333,120]
[387736639,1758833352147,-1000.0,0.0004332,60]
[387736640,1758833352173,-1904871.66091654,0.0004644,30]
[387736641,1758833352197,-500.0,0.0004644,30]
[387736642,1758833352223,-3700.72,0.00046575,120]
[387736643,1758833352286,1154.10435632,0.000333,120]
[387736644,1758833352320,1041.39762777,0.000323,120]
[387736645,1758833352489,1041.39762777,0.000326,120]
[387736646,1758833353645,1041.39762777,0.00033,120]
[387736647,1758833354462,1041.39762777,0.000333,120]
[387736708,1758833437157,-567.04052087,0.00019085,2]
[387736720,1758833437265,-2236.27964375,0.00019085,2]
[387736722,1758833437274,-359.55,0.00019173,3]
[387736724,1758833437284,-179.78,0.00019173,3]
[387736726,1758833437293,-539.35,0.00019173,3]
[387736728,1758833437302,-300.0,0.00019178,2]
[387736729,1758833437311,-1200.0,0.00019178,2]
[387736730,1758833437321,-500.0,0.00019179,2]
[387736731,1758833437330,-240.18817524,0.00019179,2]
[387736732,1758833437343,-500.0,0.00019179,2]
[387736735,1758833437353,-500.0,0.00019179,2]
[387736738,1758833437362,-410.62140012,0.00019179,2]
[387736741,1758833437372,-500.0,0.00019179,2]
[387736744,1758833437381,-259.9989953,0.00019179,2]
[387736746,1758833437393,-480.0,0.00019179,2]
[387736748,1758833437403,-480.0,0.0001918,2]
[387736749,1758833437412,-480.0,0.0001918,2]
[387736750,1758833437422,-241.68324044,0.0001918,2]
[387736751,1758833437433,-480.0,0.0001918,2]
[387736752,1758833437443,-480.0,0.0001918,2]
[387736753,1758833437452,-480.0,0.0001918,2]
[387736754,1758833437462,-480.0,0.0001918,2]
[387736755,1758833437474,-480.0,0.0001918,2]
[387736756,1758833437484,-480.0,0.0001918,2]
[387736757,1758833437495,-480.0,0.0001918,2]
[387736758,1758833437508,-500.0,0.0001918,2]
[387736759,1758833437520,-306.45697855,0.0001918,2]
[387736760,1758833437530,-500.0,0.0001918,2]
[387736761,1758833437539,-500.0,0.0001918,2]
[387736762,1758833437548,-500.0,0.0001918,2]
[387736763,1758833437558,-500.0,0.0001918,2]
[387736764,1758833437570,-500.0,0.0001918,2]
[387736765,1758833437579,-500.0,0.0001918,2]
[387736766,1758833437588,-500.0,0.0001918,2]
[387736767,1758833437597,-500.0,0.0001918,2]
[387736768,1758833437606,-500.0,0.0001918,2]
[387736769,1758833437616,-500.0,0.0001918,2]
[387736770,1758833437625,-480.0,0.0001918,2]
[387736771,1758833437635,-480.0,0.0001918,2]
[387736772,1758833437644,-500.0,0.0001918,2]
[387736773,1758833437653,-338.56966944,0.0001918,2]
[387736774,1758833437662,-500.0,0.0001918,2]
[387736775,1758833437750,-480.0,0.0001918,2]
[387736776,1758833437760,-480.0,0.0001918,2]
[387736777,1758833437770,-480.0,0.0001918,2]
[387736778,1758833437780,-480.0,0.0001918,2]
[387736779,1758833437789,-480.0,0.0001918,2]
[387736780,1758833437799,-480.0,0.0001918,2]
[387736781,1758833437808,-480.0,0.0001918,2]
[387736782,1758833437818,-480.0,0.0001918,2]
[387736783,1758833437827,-480.0,0.0001918,2]
[387736784,1758833437837,-480.0,0.0001918,2]
[387736785,1758833437847,-480.0,0.0001918,2]
[387736786,1758833437856,-480.0,0.0001918,2]
[387736787,1758833437866,-261.80219625,0.0001918,2]
[387736788,1758833437875,-480.0,0.0001918,2]
[387736789,1758833437885,-1042.42,0.0001918,2]
[387736790,1758833437894,-480.0,0.0001918,2]
[387736791,1758833437903,-480.0,0.0001918,2]
[387736792,1758833437913,-321.80506963,0.0001918,2]
[387736793,1758833437922,-480.0,0.0001918,2]
[387736794,1758833437931,-4474.8,0.0001918,2]
[387736795,1758833437940,-595.5,0.0001918,2]
[387736796,1758833437950,-480.0,0.00019181,2]
[387736797,1758833437960,-480.0,0.00019181,2]
[387736798,1758833437970,-480.0,0.00019181,2]
[387736799,1758833437979,-480.0,0.00019181,2]
[387736800,1758833437989,-492.28743693,0.00019181,2]
[387736801,1758833437999,-480.0,0.00019181,2]
[387736802,1758833438009,-480.0,0.00019181,2]
[387736803,1758833438018,-480.0,0.00019181,2]
[387736804,1758833438027,-480.0,0.00019181,2]
[387736805,1758833438037,-480.0,0.00019181,2]
[387736806,1758833438046,-480.0,0.00019181,2]
[387736807,1758833438055,-480.0,0.00019181,2]
[387736809,1758833438065,-480.0,0.00019181,2]
[387736811,1758833438075,-480.0,0.00019181,2]
[387736813,1758833438084,-480.0,0.00019181,2]
[387736815,1758833438097,-480.0,0.00019181,2]
[387736817,1758833438106,-504.90404253,0.00019181,2]
[387736819,1758833438115,-480.0,0.00019181,2]
[387736821,1758833438125,-480.0,0.00019181,2]
[387736823,1758833438135,-480.0,0.00019181,2]
[387736825,1758833438144,-815.14,0.00019181,2]
[387736827,1758833438153,-480.0,0.00019181,2]
[387736829,1758833438163,-480.0,0.00019181,2]
[387736831,1758833438172,-480.0,0.00019181,2]
[387736833,1758833438182,-480.0,0.00019181,2]
[387736835,1758833438191,-480.0,0.00019181,2]
[387736837,1758833438202,-538.06,0.00019181,2]
[387736839,1758833438212,-480.0,0.00019181,2]
[387736841,1758833438221,-480.0,0.00019181,2]
[387736843,1758833438230,-480.0,0.00019181,2]
[387736845,1758833438240,-876.8,0.00019181,2]
[387736847,1758833438249,-480.0,0.00019181,2]
[387736849,1758833438258,-480.0,0.00019181,2]
[387736851,1758833438267,-151.0,0.00019181,2]
[387736853,1758833438277,-151.0,0.00019181,2]
[387736855,1758833438286,-151.0,0.00019181,2]
[387736857,1758833438295,-161.335341,0.00019181,2]
[387736859,1758833438305,-151.0,0.00019181,2]
[387736861,1758833438314,-151.0,0.00019181,2]
[387736863,1758833438324,-151.0,0.00019181,2]
[387736865,1758833438333,-1154.01,0.00019181,2]
[387736867,1758833438343,-151.0,0.00019181,2]
[387736869,1758833438356,-641.91,0.00019181,2]
[387736871,1758833438366,-480.0,0.00019181,2]
[387736873,1758833438375,-544.635121,0.00019181,2]
[387736875,1758833438384,-544.635121,0.00019181,2]
[387736877,1758833438394,-544.635121,0.00019181,2]
[387736879,1758833438405,-480.0,0.00019181,2]
[387736881,1758833438415,-544.635121,0.00019181,2]
[387736883,1758833438424,-480.0,0.00019181,2]
[387736885,1758833438435,-485.23,0.00019181,2]
[387736887,1758833438444,-321.4430261,0.00019181,2]
[387736889,1758833438453,-447.542379,0.00019181,2]
[387736891,1758833438463,-447.542379,0.00019181,2]
[387736893,1758833438472,-447.542379,0.00019181,2]
[387736895,1758833438481,-447.542379,0.00019181,2]
[387736897,1758833438491,-151.0,0.00019181,2]
[387736899,1758833438500,-151.0,0.00019181,2]
[387736901,1758833438509,-3.65149391,0.00019181,2]
[387736903,1758833438523,-147.34850609,0.00019181,2]
[387736905,1758833438532,-151.0,0.00019181,2]
[387736908,1758833438542,-151.0,0.00019181,2]
[387736910,1758833438551,-151.0,0.00019181,2]
[387736911,1758833438561,-480.0,0.00019181,2]
[387736913,1758833438570,-2678.16,0.00019181,2]
[387736915,1758833438580,-152.946929,0.00019181,2]
[387736919,1758833438589,-527.47,0.00019181,2]
[387736920,1758833438599,-151.0,0.00019181,2]
[387736923,1758833438608,-480.0,0.00019181,2]
[387736925,1758833438618,-480.0,0.00019181,2]
[387736927,1758833438627,-151.0,0.00019181,2]
[387736929,1758833438636,-151.0,0.00019181,2]
[387736930,1758833438646,-151.0,0.00019181,2]
[387736933,1758833438656,-151.0,0.00019181,2]
[387736934,1758833438665,-151.0,0.00019181,2]
[387736936,1758833438675,-151.0,0.00019181,2]
[387736937,1758833438684,-480.0,0.00019181,2]
[387736939,1758833438693,-480.0,0.00019181,2]
[387736941,1758833438703,-480.0,0.00019181,2]
[387736942,1758833438712,-606.23,0.00019181,2]
[387736944,1758833438722,-480.0,0.00019181,2]
[387736946,1758833438731,-817.09,0.00019181,2]
[387736947,1758833438741,-497.06,0.00019181,2]
[387736949,1758833438751,-480.0,0.00019181,2]
[387736951,1758833438760,-597.96,0.00019181,2]
[387736952,1758833438770,-480.0,0.00019181,2]
[387736954,1758833438779,-480.0,0.00019181,2]
[387736956,1758833438788,-480.0,0.00019181,2]
[387736958,1758833438797,-480.0,0.00019181,2]
[387736959,1758833438806,-480.0,0.00019181,2]
[387736961,1758833438816,-480.0,0.00019181,2]
[387736963,1758833438825,-540.0,0.00019181,2]
[387736965,1758833438835,-480.0,0.00019181,2]
[387736967,1758833438844,-480.0,0.00019181,2]
[387736968,1758833438853,-575.9,0.00019181,2]
[387736970,1758833438863,-480.0,0.00019181,2]
[387736972,1758833438872,-480.0,0.00019181,2]
[387736974,1758833438882,-574.71225045,0.00019181,2]
[387736975,1758833438891,-1039.18,0.00019181,2]
[387736977,1758833438900,-480.0,0.00019181,2]
[387736979,1758833438911,-1283.74,0.00019181,2]
[387736981,1758833438920,-549.27,0.00019181,2]
[387736982,1758833438929,-480.0,0.00019182,2]
[387736984,1758833438939,-480.0,0.00019182,2]
[387736986,1758833438949,-480.0,0.00019182,2]
[387736988,1758833438958,-301.18998338,0.00019182,2]
[387736989,1758833438967,-539.23417234,0.00019182,2]
[387736991,1758833438977,-480.0,0.00019182,2]
[387736993,1758833438986,-489.37399186,0.00019182,2]
[387736995,1758833438996,-480.0,0.00019182,2]
[387736996,1758833439005,-480.0,0.00019182,2]
[387736998,1758833439014,-151.0,0.00019182,2]
[387737006,1758833439091,-295.6839,0.00019182,2]
[387737007,1758833439101,-151.0,0.00019182,2]
[387737009,1758833439111,-151.0,0.00019182,2]
[387737011,1758833439120,-151.0,0.00019182,2]
[387737013,1758833439129,-151.0,0.00019182,2]
[387737015,1758833439139,-151.0,0.00019182,2]
[387737017,1758833439148,-151.0,0.00019182,2]
[387737018,1758833439158,-151.0,0.00019182,2]
[387737020,1758833439167,-151.0,0.00019182,2]
[387737022,1758833439177,-151.0,0.00019182,2]
[387737023,1758833439186,-151.0,0.00019182,2]
[387737025,1758833439195,-151.0,0.00019182,2]
[387737027,1758833439204,-151.0,0.00019182,2]
[387737029,1758833439214,-151.0,0.00019182,2]
[387737031,1758833439223,-151.0,0.00019182,2]
[387737033,1758833439232,-151.0,0.00019182,2]
[387737034,1758833439242,-151.0,0.00019182,2]
[387737036,1758833439252,-151.0,0.00019182,2]
[387737037,1758833439261,-151.0,0.00019182,2]
[387737039,1758833439269,-151.0,0.00019182,2]
[387737041,1758833439279,-151.0,0.00019182,2]
[387737043,1758833439288,-151.0,0.00019182,2]
[387737044,1758833439298,-151.0,0.00019182,2]
[387737046,1758833439307,-250.312144,0.00019182,2]
[387737048,1758833439317,-151.0,0.00019182,2]
[387737050,1758833439326,-151.0,0.00019182,2]
[387737052,1758833439336,-153.861515,0.00019182,2]
[387737053,1758833439347,-151.0,0.00019182,2]
[387737055,1758833439356,-151.0,0.00019182,2]
[387737057,1758833439365,-151.618247,0.00019182,2]
[387737059,1758833439374,-210.535776,0.00019182,2]
[387737061,1758833439383,-210.535776,0.00019182,2]
[387737062,1758833439393,-210.535776,0.00019182,2]
[387737064,1758833439402,-210.535776,0.00019182,2]
[387737066,1758833439412,-210.535776,0.00019182,2]
[387737068,1758833439421,-210.535776,0.00019182,2]
[387737069,1758833439430,-210.535776,0.00019182,2]
[387737071,1758833439440,-210.535776,0.00019182,2]
[387737073,1758833439450,-1267.58,0.00019182,2]
[387737075,1758833439459,-152.223131,0.00019182,2]
[387737077,1758833439469,-480.0,0.00019182,2]
[387737079,1758833439479,-151.0,0.00019182,2]
[387737080,1758833439489,-151.0,0.00019182,2]
[387737082,1758833439499,-151.0,0.00019182,2]
[387737084,1758833439508,-494.84880222,0.00019182,2]
[387737086,1758833439518,-2724.34,0.00019182,2]
[387737088,1758833439527,-151.0,0.00019182,2]
[387737089,1758833439537,-151.0,0.00019182,2]
[387737091,1758833439546,-151.0,0.00019182,2]
[387737093,1758833439555,-153.07,0.00019182,2]
[387737095,1758833439563,-538.06,0.00019182,2]
[387737097,1758833439573,-151.0,0.00019182,2]
[387737098,1758833439582,-151.0,0.00019182,2]
[387737100,1758833439591,-151.0,0.00019182,2]
[387737102,1758833439601,-151.0,0.00019182,2]
[387737104,1758833439610,-151.0,0.00019182,2]
[387737106,1758833439619,-151.0,0.00019182,2]
[387737108,1758833439629,-1530.64,0.00019182,2]
[387737109,1758833439638,-480.0,0.00019182,2]
[387737111,1758833439647,-151.0,0.00019182,2]
[387737113,1758833439656,-151.0,0.00019182,2]
[387737115,1758833439666,-544.635121,0.00019182,2]
[387737117,1758833439675,-544.635121,0.00019182,2]
[387737118,1758833439685,-544.635121,0.00019182,2]
[387737120,1758833439694,-544.635121,0.00019182,2]
[387737122,1758833439703,-544.635121,0.00019182,2]
[387737124,1758833439713,-544.635121,0.00019182,2]
[387737126,1758833439722,-544.635121,0.00019182,2]
[387737127,1758833439732,-544.635121,0.00019182,2]
[387737129,1758833439741,-447.542379,0.00019182,2]
[387737131,1758833439751,-447.542379,0.00019182,2]
[387737133,1758833439760,-447.542379,0.00019182,2]
[387737135,1758833439770,-480.0,0.00019182,2]
[387737137,1758833439782,-447.542379,0.00019182,2]
[387737139,1758833439791,-447.542379,0.00019182,2]
[387737140,1758833439801,-447.542379,0.00019182,2]
[387737142,1758833439811,-447.542379,0.00019182,2]
[387737144,1758833439820,-480.0,0.00019182,2]
[387737146,1758833439830,-447.542379,0.00019182,2]
[387737147,1758833439839,-151.0,0.00019182,2]
[387737149,1758833439849,-151.0,0.00019182,2]
[387737152,1758833439858,-151.0,0.00019182,2]
[387737154,1758833439867,-151.0,0.00019182,2]
[387737156,1758833439877,-151.0,0.00019182,2]
[387737157,1758833439886,-151.0,0.00019182,2]
[387737159,1758833439895,-151.0,0.00019182,2]
[387737161,1758833439907,-151.0,0.00019182,2]
[387737163,1758833439917,-2349.48,0.00019182,2]
[387737165,1758833439926,-151.0,0.00019182,2]
[387737167,1758833439936,-151.0,0.00019182,2]
[387737169,1758833439945,-151.0,0.00019182,2]
[387737171,1758833439954,-151.0,0.00019182,2]
[387737173,1758833439963,-292.917888,0.00019182,2]
[387737175,1758833439972,-490.89,0.00019182,2]
[387737176,1758833439981,-480.0,0.00019182,2]
[387737178,1758833439990,-480.0,0.00019183,2]
[387737180,1758833440000,-480.0,0.00019183,2]
[387737182,1758833440008,-480.0,0.00019183,2]
[387737184,1758833440018,-480.0,0.00019183,2]
[387737185,1758833440028,-480.0,0.00019183,2]
[387737187,1758833440037,-330.68640284,0.00019183,2]
[387737189,1758833440046,-151.0,0.00019183,2]
[387737191,1758833440055,-480.0,0.00019183,2]
[387737193,1758833440064,-151.0,0.00019183,2]
[387737194,1758833440074,-480.0,0.00019183,2]
[387737196,1758833440083,-155.969556,0.00019183,2]
[387737198,1758833440092,-151.0,0.00019183,2]
[387737200,1758833440101,-480.0,0.00019183,2]
[387737202,1758833440111,-418.11864565,0.00019183,2]
[387737203,1758833440121,-152.346166,0.00019183,2]
[387737205,1758833440131,-179.90445576,0.00019183,2]
[387737207,1758833440140,-480.0,0.00019183,2]
[387737209,1758833440150,-151.0,0.00019183,2]
[387737211,1758833440164,-151.0,0.00019183,2]
[387737212,1758833440174,-151.0,0.00019183,2]
[387737214,1758833440183,-480.0,0.00019183,2]
[387737216,1758833440193,-480.0,0.00019183,2]
[387737218,1758833440203,-151.0,0.00019183,2]
[387737220,1758833440212,-151.0,0.00019183,2]
[387737222,1758833440222,-480.0,0.00019183,2]
[387737223,1758833440232,-480.0,0.00019183,2]
[387737225,1758833440242,-592.89,0.00019183,2]
[387737227,1758833440251,-480.0,0.00019183,2]
[387737234,1758833440329,-480.0,0.00019183,2]
[387737236,1758833440340,-480.0,0.00019183,2]
[387737238,1758833440353,-151.0,0.00019183,2]
[387737240,1758833440362,-151.0,0.00019183,2]
[387737242,1758833440372,-151.0,0.00019183,2]
[387737244,1758833440382,-151.0,0.00019183,2]
[387737245,1758833440392,-151.0,0.00019183,2]
[387737247,1758833440402,-151.0,0.00019183,2]
[387737249,1758833440414,-151.0,0.00019183,2]
[387737251,1758833440425,-151.0,0.00019183,2]
[387737253,1758833440435,-151.0,0.00019183,2]
[387737255,1758833440444,-480.0,0.00019183,2]
[387737256,1758833440454,-480.0,0.00019183,2]
[387737258,1758833440463,-480.0,0.00019183,2]
[387737260,1758833440472,-151.0,0.00019183,2]
[387737262,1758833440481,-151.0,0.00019183,2]
[387737264,1758833440490,-151.0,0.00019183,2]
[387737265,1758833440499,-151.0,0.00019183,2]
[387737267,1758833440509,-480.0,0.00019183,2]
[387737269,1758833440519,-480.0,0.00019183,2]
[387737271,1758833440529,-480.0,0.00019183,2]
[387737273,1758833440538,-480.0,0.00019183,2]
[387737274,1758833440548,-510.48866658,0.00019183,2]
[387737276,1758833440557,-480.0,0.00019183,2]
[387737278,1758833440566,-151.0,0.00019183,2]
[387737280,1758833440577,-151.0,0.00019183,2]
[387737282,1758833440586,-230.933689,0.00019183,2]
[387737284,1758833440596,-151.0,0.00019183,2]
[387737285,1758833440605,-544.0218598,0.00019183,2]
[387737287,1758833440615,-480.0,0.00019183,2]
[387737289,1758833440624,-560.442518,0.00019183,2]
[387737291,1758833440633,-151.0,0.00019183,2]
[387737293,1758833440642,-151.0,0.00019183,2]
[387737294,1758833440651,-151.0,0.00019183,2]
[387737296,1758833440663,-164.465668,0.00019183,2]
[387737298,1758833440672,-151.0,0.00019183,2]
[387737300,1758833440681,-151.0,0.00019183,2]
[387737302,1758833440691,-151.0,0.00019183,2]
[387737304,1758833440700,-480.0,0.00019183,2]
[387737305,1758833440710,-151.0,0.00019183,2]
[387737307,1758833440719,-151.0,0.00019183,2]
[387737309,1758833440728,-151.0,0.00019183,2]
[387737311,1758833440737,-223.920258,0.00019183,2]
[387737313,1758833440747,-151.0,0.00019183,2]
[387737315,1758833440756,-197.860276,0.00019183,2]
[387737316,1758833440765,-480.0,0.00019183,2]
[387737318,1758833440774,-480.0,0.00019183,2]
[387737320,1758833440783,-480.0,0.00019183,2]
[387737322,1758833440793,-705.9,0.00019183,2]
[387737324,1758833440802,-480.0,0.00019183,2]
[387737325,1758833440811,-151.0,0.00019183,2]
[387737327,1758833440820,-152.797043,0.00019183,2]
[387737329,1758833440829,-151.0,0.00019183,2]
[387737331,1758833440838,-480.0,0.00019183,2]
[387737333,1758833440848,-151.0,0.00019183,2]
[387737335,1758833440858,-151.0,0.00019183,2]
[387737336,1758833440867,-151.0,0.00019183,2]
[387737338,1758833440876,-151.0,0.00019183,2]
[387737340,1758833440885,-151.0,0.00019183,2]
[387737342,1758833440894,-480.0,0.00019183,2]
[387737344,1758833440904,-151.0,0.00019183,2]
[387737345,1758833440914,-151.0,0.00019183,2]
[387737347,1758833440923,-155.968638,0.00019183,2]
[387737349,1758833440932,-308.80002257,0.00019183,2]
[387737350,1758833440943,-480.0,0.00019183,2]
[387737351,1758833440952,-480.0,0.00019183,2]
[387737352,1758833440961,-480.0,0.00019183,2]
[387737353,1758833440970,-151.0,0.00019183,2]
[387737354,1758833440979,-151.0,0.00019183,2]
[387737355,1758833440989,-151.0,0.00019183,2]
[387737356,1758833440999,-172.88272,0.00019183,2]
[387737357,1758833441008,-480.0,0.00019183,2]
[387737358,1758833441017,-480.0,0.00019183,2]
[387737359,1758833441027,-151.0,0.00019183,2]
[387737360,1758833441036,-151.0,0.00019183,2]
[387737361,1758833441046,-151.0,0.00019183,2]
[387737362,1758833441055,-162.39063,0.00019183,2]
[387737363,1758833441065,-480.0,0.00019183,2]
[387737364,1758833441075,-482.34956189,0.00019183,2]
[387737365,1758833441084,-480.80576267,0.00019183,2]
[387737366,1758833441094,-480.0,0.00019183,2]
[387737367,1758833441103,-485.93860849,0.00019183,2]
[387737368,1758833441113,-480.0,0.00019183,2]
[387737369,1758833441122,-481.48672431,0.00019183,2]
[387737370,1758833441132,-480.0,0.00019183,2]
[387737371,1758833441141,-206.32701861,0.00019183,2]
[387737372,1758833441151,-151.0,0.00019183,2]
[387737373,1758833441163,-151.0,0.00019183,2]
[387737374,1758833441173,-171.913362,0.00019183,2]
[387737375,1758833441183,-480.0,0.00019183,2]
[387737376,1758833441194,-480.0,0.00019183,2]
[387737377,1758833441203,-480.0,0.00019183,2]
[387737378,1758833441214,-480.0,0.00019183,2]
[387737379,1758833441223,-483.8008432,0.00019183,2]
[387737380,1758833441233,-493.87712848,0.00019183,2]
[387737381,1758833441243,-1638.65,0.00019183,2]
[387737382,1758833441252,-480.0,0.00019183,2]
[387737383,1758833441262,-151.0,0.00019183,2]
[387737384,1758833441271,-151.0,0.00019183,2]
[387737385,1758833441280,-151.0,0.00019183,2]
[387737386,1758833441289,-151.0,0.00019183,2]
[387737387,1758833441299,-151.0,0.00019183,2]
[387737388,1758833441309,-151.0,0.00019183,2]
[387737389,1758833441318,-170.446767,0.00019183,2]
[387737390,1758833441329,-480.0,0.00019183,2]
[387737391,1758833441339,-491.91765334,0.00019183,2]
[387737392,1758833441355,-480.0,0.00019183,2]
[387737393,1758833441366,-496.80224384,0.00019183,2]
[387737394,1758833441375,-480.0,0.00019183,2]
[387737395,1758833441384,-485.27066079,0.00019183,2]
[387737396,1758833441394,-151.0,0.00019183,2]
[387737397,1758833441405,-151.0,0.00019183,2]
[387737398,1758833441415,-151.0,0.00019183,2]
[387737399,1758833441484,-151.0,0.00019183,2]
[387737400,1758833441494,-442.60662754,0.00019183,2]
[387737401,1758833441503,-480.0,0.00019183,2]
[387737402,1758833441512,-480.0,0.00019183,2]
[387737403,1758833441521,-154.678514,0.00019183,2]
[387737404,1758833441531,-480.0,0.00019183,2]
[387737405,1758833441540,-151.0,0.00019183,2]
[387737406,1758833441550,-151.0,0.00019183,2]
[387737407,1758833441559,-151.0,0.00019183,2]
[387737408,1758833441568,-151.0,0.00019183,2]
[387737409,1758833441577,-263.76202,0.00019183,2]
[387737410,1758833441587,-480.0,0.00019183,2]
[387737411,1758833441597,-480.0,0.00019183,2]
[387737412,1758833441606,-151.0,0.00019183,2]
[387737413,1758833441615,-151.0,0.00019183,2]
[387737414,1758833441625,-151.0,0.00019183,2]
[387737415,1758833441634,-162.998256,0.00019183,2]
[387737416,1758833441643,-489.24244509,0.00019183,2]
[387737417,1758833441653,-480.0,0.00019183,2]
[387737418,1758833441664,-826.61,0.00019183,2]
[387737419,1758833441673,-480.0,0.00019183,2]
[387737420,1758833441683,-480.0,0.00019183,2]
[387737421,1758833441692,-480.0,0.00019183,2]
[387737422,1758833441701,-480.0,0.00019183,2]
[387737423,1758833441711,-151.0,0.00019183,2]
[387737424,1758833441720,-151.0,0.00019183,2]
[387737425,1758833441729,-213.92,0.00019183,2]
[387737426,1758833441738,-484.69969827,0.00019183,2]
[387737427,1758833441748,-151.0,0.00019183,2]
[387737428,1758833441758,-354.37290591,0.00019183,2]
[387737429,1758833441767,-151.0,0.00019183,2]
[387737430,1758833441776,-484.73907712,0.00019183,2]
[387737431,1758833441785,-151.0,0.00019183,2]
[387737432,1758833441795,-151.0,0.00019183,2]
[387737433,1758833441805,-151.0,0.00019183,2]